Cogmind - Beta 15 @@@ ROGUE MODE // 2025.08.17 @ 13:46:50 Player: StaticNoob Result: Destroyed by S-27 Virus with Autogun Performance ------------- Evolutions (3) 1500 Regions Visited (12) 2400 Robots Destroyed (187) 935 Value Destroyed (5933) 5933 Prototype IDs (33) 660 Alien Tech Used (0) 0 Bonus (2192) 2192 TOTAL SCORE: 13620 Bonus ------- High Alert Combat Kills 106 Follower Combat Kills 271 Destroyed Z-Imprinter 1000 Triggered Deep Caves Wall 500 Exposed GOLEM Chamber 500 Friendly Fire -185 Cogmind --------- Core Integrity 0/700 Matter 300/300 Energy 98/100 System Corruption 1% Temperature Cool (0) Movement Core (50) Location -6/Proximity Caves Parts ------- > --- POWER (1) -------- (None) > --- PROPULSION (4) --- (None) > --- UTILITY (5) ------ Experimental Heat Sink Advanced Targeting Computer > --- WEAPON (3) ------- (None) > --- INVENTORY (5) ---- Hardened Medium Armor Plating Improved Medium Armor Plating Makeshift Hacking Suite High-powered Tractor Beam CR-A16's Pointy Stick Peak State ------------ > --- POWER ------------ Zionite Light DM Reactor > --- PROPULSION ------- Light Treads Armored Treads Armored Treads Advanced Treads > --- UTILITY ---------- Experimental Heat Sink High-capacity Storage Unit Advanced Targeting Computer Hardened Medium Armor Plating Improved Shield Generator > --- WEAPON ----------- Enhanced Autogun Precision Assault Rifle Assault Cannon > --- INVENTORY -------- Improved Deuterium Engine High-capacity Matter Pod Improved Signal Interpreter Surveybot 24 Scanner Surveybot 24 Chip Seismic Detector Weapon Cycler Hardened Medium Armor Plating Improved Medium Armor Plating Makeshift Hacking Suite High-powered Tractor Beam Riot Gun High-powered Shotgun High-powered Shotgun Barrage Gun Advanced EMP Blaster Advanced EMP Blaster Missile Launcher CR-A16's Pointy Stick [Rating: 55] Favorites ----------- Power F-cell Engine Engine F-cell Engine Reactor Zionite Light DM Reactor Propulsion Armored Treads Treads Armored Treads Wheel Wheel Utility High-capacity Storage Unit Device Seismic Detector Storage High-capacity Storage Unit Processor Advanced Targeting Computer Hackware Experimental Hacking Suite Protection Hardened Medium Armor Plating Weapon Enhanced Autogun Energy Gun Small Laser Energy Cannon Heavy Particle Cannon Ballistic Gun Enhanced Autogun Ballistic Cannon Assault Cannon Launcher Advanced EMP Blaster Build | -11 -10 -10 -9 -9 -8 -8 -7 -7 -7 -7 -7 -6 ------- Run | Yrd Mat Min Mat Min Mat Sto Fac Low Low Zio Dee Pro Slots Evolved 6 | . . . 2 . 2 . 2 . . . . . Power . | . . . . . . . . . . . . . Propulsion 2 | . . . . . 1 . 1 . . . . . Utility 3 | . . . 1 . 1 . 1 . . . . . Weapon 1 | . . . 1 . . . . . . . . . Parts Attached 75 | 7 7 2 9 2 11 5 15 1 . 8 8 . Power 7 | 1 2 . 2 . . 1 . . . . 1 . Engine 6 | 1 2 . 2 . . 1 . . . . . . Core . | . . . . . . . . . . . . . Reactor 1 | . . . . . . . . . . . 1 . Propulsion 13 | 2 1 . 4 . 2 1 3 . . . . . Treads 12 | 2 1 . 3 . 2 1 3 . . . . . Leg . | . . . . . . . . . . . . . Wheel 1 | . . . 1 . . . . . . . . . Hover . | . . . . . . . . . . . . . Flight . | . . . . . . . . . . . . . Utility 27 | 2 1 . 3 . 3 1 6 . . 6 5 . Device 10 | 1 . . 2 . 1 . 3 . . 1 2 . Storage 5 | 1 1 . . . . . 1 . . . 2 . Processor 6 | . . . 1 . 1 . . . . 4 . . Hackware 1 | . . . . . . . . . . 1 . . Protection 5 | . . . . . 1 1 2 . . . 1 . Artifact . | . . . . . . . . . . . . . Weapon 28 | 2 3 2 . 2 6 2 6 1 . 2 2 . Energy Gun 3 | . 1 . . . . . . 1 . . 1 . Energy Cannon 1 | . . . . . . 1 . . . . . . Ballistic Gun 14 | 2 2 1 . . 6 1 2 . . . . . Ballistic Cannon 2 | . . 1 . . . . 1 . . . . . Launcher 8 | . . . . 2 . . 3 . . 2 1 . Special Weapon . | . . . . . . . . . . . . . Impact Weapon . | . . . . . . . . . . . . . Slashing Weapon . | . . . . . . . . . . . . . Piercing Weapon . | . . . . . . . . . . . . . Special Melee Weapon . | . . . . . . . . . . . . . Unidentified Prototypes 14 | . . . . . . 1 1 . . 8 4 . Parts Lost 31 | . 6 . 1 . 2 3 5 . . 1 13 . Power 3 | . 1 . 1 . . . . . . . 1 . Propulsion 9 | . 2 . . . . 1 2 . . . 4 . Utility 7 | . . . . . 1 1 . . . 1 4 . Weapon 12 | . 3 . . . 1 1 3 . . . 4 . Highest Loss Streak 9 | . 2 . 1 . 1 1 1 . . 1 9 . To Critical Strikes . | . . . . . . . . . . . . . Average Backups 17 | 1 7 16 19 20 19 19 19 20 20 19 19 5 Power 1 | . 2 3 1 1 1 1 1 1 1 1 1 . Propulsion 1 | . . 1 2 4 4 3 1 . . . . . Utility 7 | . 3 7 8 8 7 7 8 10 10 10 10 4 Weapon 6 | . 1 5 6 7 6 7 7 8 8 7 7 1 Tool/Special . | . . . . . . . . . . . . . Unused Backups 32 | . . . 3 . 5 3 3 . . 2 13 3 Power 4 | . . . . . . 1 . . . . 3 . Propulsion 1 | . . . 1 . . . . . . . . . Utility 15 | . . . 1 . 2 . 2 . . 1 7 2 Weapon 11 | . . . 1 . 3 2 1 . . . 3 1 Tool/Special 1 | . . . . . . . . . . 1 . . Average Slot Usage (%) 96 | . 91 85 99 100 99 100 97 100 100 99 96 15 Engine 8 | . 14 14 10 11 9 9 7 7 7 7 1 . Treads 25 | . 23 14 20 22 27 27 28 30 30 30 28 . Device 13 | . 14 14 11 11 17 10 14 15 15 14 14 7 Storage 9 | . 14 14 11 11 9 9 7 7 7 7 7 . Processor 7 | . . . 10 11 9 9 7 7 7 7 7 7 Protection 3 | . . . . . . 7 7 7 7 7 5 . Energy Gun 1 | . 4 6 . . . . . 3 . . 1 . Ballistic Gun 19 | . 20 14 22 22 23 26 21 8 14 15 9 . Ballistic Cannon 4 | . . 7 11 10 3 . 1 7 7 7 4 . Peak Build Rating 55 | 7 8 12 22 22 34 38 48 48 48 54 55 11 Average Rating 32 | 4 7 10 18 22 29 37 44 47 47 47 51 11 On Entrance 26 | . 7 8 12 22 22 34 38 48 46 48 49 11 Naked Turns . | . . . . . . . . . . . . . Heaviest Build 80 | 15 48 51 57 57 61 73 77 80 77 80 80 . Greatest Support 82 | 40 40 20 40 40 60 60 82 82 82 82 82 3 Greatest Overweight (x) 5 | . 2 2 5 1 1 1 1 . . . 1 . Average Overweight (x) . | . 1 2 1 1 . . . . . . . . Largest Inventory Capacity 20 | 8 20 20 20 20 20 20 20 20 20 20 20 5 Average Capacity 19 | 6 19 20 20 20 20 20 20 20 20 20 19 5 Most Carried 20 | 2 15 19 20 20 20 20 20 20 20 20 20 5 Average Carried 17 | . 7 16 19 20 19 19 19 20 20 19 19 5 Final Capacity 20 | 8 20 20 20 20 20 20 20 20 20 20 5 5 Final Carried 20 | 2 15 18 20 20 19 18 20 20 20 20 5 5 Class Distribution -------------------- 53% | Gunner 27% | Tank 11% | Mutant 6% | Scavenger-Mutant Dominant Class ---------------- Mutant | -10/Materials Mutant | -10/Mines Gunner | -9/Materials Gunner | -9/Mines Gunner | -8/Materials Gunner | -8/Storage Gunner | -7/Factory Tank | -7/Lower Caves Tank | -7/Lower Caves Tank | -7/Zion Tank | -7/Deep Caves Mutant | -6/Proximity Caves Resources | -11 -10 -10 -9 -9 -8 -8 -7 -7 -7 -7 -7 -6 ----------- Run | Yrd Mat Min Mat Min Mat Sto Fac Low Low Zio Dee Pro Matter Collected 5257 | 276 384 84 688 69 1147 728 1154 75 58 78 516 . Remotely 563 | . . . 53 . . . 510 . . . . . Salvage Created 7485 | 22 732 51 1047 27 1708 1103 1687 60 75 . 973 . Parts 403 | 5 44 4 67 11 86 59 113 2 4 . 8 . Haulers Intercepted 13 | . 1 . 3 . 2 4 3 . . . . . Recyclers Shooed 8 | . 1 1 1 . 1 4 . . . . . . Parts Field Recycled . | . . . . . . . . . . . . . Retrieved Matter . | . . . . . . . . . . . . . Parts Self-Destructed 2 | . . . . . . . . . 2 . . . Prevented 4 | . . . . . . . . 2 2 . . . Kills | -11 -10 -10 -9 -9 -8 -8 -7 -7 -7 -7 -7 -6 ------- Run | Yrd Mat Min Mat Min Mat Sto Fac Low Low Zio Dee Pro Combat Hostiles Destroyed 177 | . 14 . 20 7 35 19 37 1 3 . 41 . Guns 106 | . 14 . 13 1 31 19 25 . . . 3 . Cannons 17 | . . . 7 . 4 . 4 . 1 . 1 . AOE 50 | . . . . 6 . . 8 1 2 . 33 . Classes Destroyed 18 | 1 5 2 1 . 4 . 2 . . . 3 . Worker 6 | . . 1 2 . . . 3 . . . . . Builder 10 | . . 1 1 1 1 . 6 . . . . . Tunneler 1 | 1 . . . . . . . . . . . . Hauler 13 | . 1 . 3 . 2 4 3 . . . . . Recycler 7 | . 2 1 2 . 1 1 . . . . . . Watcher 11 | . 1 . 2 . 5 2 1 . . . . . Swarmer 37 | . 2 . 5 7 6 3 11 . 3 . . . Grunt 60 | . 12 . 9 . 15 4 20 . . . . . Brawler 1 | . . . . . . . 1 . . . . . Duelist 4 | . . . . . 1 1 2 . . . . . Sentry 27 | . . . 6 . 9 11 1 . . . . . Specialist 2 | . . . . . 2 . . . . . . . Hunter 2 | . . . . . 1 . . 1 . . . . Programmer 2 | . . . . . . . 2 . . . . . Heavy 1 | . . . . . 1 . . . . . . . Z-Light 1 | . . . . . . . . . . . 1 . Assembled 36 | . . . . . . . . . . . 36 . Golem 4 | . . . . . . . . . . . 4 . Thug 1 | . . . 1 . . . . . . . . . Best Kill Streak 33 | 1 5 2 7 5 5 5 10 1 3 . 33 . Combat Bots Only 33 | . 4 . 7 4 5 5 7 1 3 . 33 . Max Kills in Single Turn 29 | 1 1 1 3 2 2 1 4 1 1 . 29 . Gunslinging 1 | . . . . . 1 . 1 . . . . . Exploded 29 | . . . . 2 . . 2 1 1 . 29 . Melee . | . . . . . . . . . . . . . Uniques/NPCs Destroyed 1 | . . . . . . . . . . . 1 . Z-Imprinter (-7/Deep Caves) Combat | -11 -10 -10 -9 -9 -8 -8 -7 -7 -7 -7 -7 -6 -------- Run | Yrd Mat Min Mat Min Mat Sto Fac Low Low Zio Dee Pro Hostile Shots Fired 655 | . 111 . 50 12 158 78 135 12 14 . 78 7 Missed 195 | . 27 . 15 4 59 20 35 3 7 . 20 5 Hits 460 | . 84 . 35 8 99 58 100 9 7 . 58 2 Melee 11 | . . . . . . 1 2 . . . 8 . Projectile 449 | . 84 . 35 8 99 57 98 9 7 . 50 2 Critical Strikes 16 | . 2 . 1 . 4 3 6 . . . . . Damage Taken 7058 | . 970 9 395 201 1167 818 1311 116 78 . 1979 14 Core 1121 | . 166 . 33 49 118 47 126 11 9 . 548 14 Absorbed by Shields 953 | . . . . . 436 11 120 44 28 . 314 . Regen/Repaired (Parts) 338 | . . . . . . . . . . 338 . . Core Remaining (%) 70 | 100 . 33 . 79 . 70 . . . . . . Volleys Fired 419 | 1 75 8 50 7 90 58 84 5 6 . 35 . Largest 3 | 2 2 2 3 3 3 3 3 2 3 . 3 . Hottest 108 | 40 60 58 78 78 83 75 90 91 90 . 108 . Shots Fired 1024 | 2 113 16 139 11 261 167 215 10 8 . 82 . Gun 841 | 2 113 8 89 4 239 164 183 5 2 . 32 . Cannon 122 | . . 8 50 2 22 3 20 . 1 . 16 . Launcher 61 | . . . . 5 . . 12 5 5 . 34 . Special . | . . . . . . . . . . . . . Kinetic 946 | 2 107 16 139 6 261 164 200 . 3 . 48 . Thermal 12 | . 6 . . . . 3 3 . . . . . Explosive 12 | . . . . 5 . . 6 . . . 1 . Electromagnetic 54 | . . . . . . . 6 10 5 . 33 . Robot Hit Streak 30 | 1 23 5 17 2 25 30 18 12 1 . 19 . Robot Miss Streak 4 | 1 3 4 4 4 4 4 3 2 4 . 3 . Penetration Max . | . . . . . . . . . . . . . Secondary Targets 19 | . 3 . . . 4 4 8 . . . . . Max Gunslinging Chain 1 | . 1 . . . 1 1 1 . . . . . Shots Hit Robots 713 | 1 87 9 85 3 194 122 151 7 2 . 52 . Core Hits 421 | 1 34 4 50 7 91 52 93 2 3 . 84 . Critical Kills 5 | . . . . . 2 . 2 . . . 1 . Critical Parts Destroyed 5 | . 2 . 1 . 1 . 1 . . . . . Critical Strikes 12 | . 2 . 2 . 4 . 3 . . . 1 . Destroy 10 | . 2 . 1 . 3 . 3 . . . 1 . Blast 2 | . . . 1 . 1 . . . . . . . Melee Attacks . | . . . . . . . . . . . . . Impact . | . . . . . . . . . . . . . Slashing . | . . . . . . . . . . . . . Piercing . | . . . . . . . . . . . . . Sneak Attacks . | . . . . . . . . . . . . . Combat Hostiles . | . . . . . . . . . . . . . Follow-up Attacks . | . . . . . . . . . . . . . Damage Inflicted 16676 | 14 939 150 1510 459 3618 2279 3993 126 172 . 3416 . Guns 10475 | 14 939 48 997 8 3336 2251 2453 36 . . 393 . Cannons 1456 | . . 100 500 19 246 . 350 . 27 . 214 . Explosions 4662 | . . . . 432 . . 1186 90 145 . 2809 . Melee . | . . . . . . . . . . . . . Ramming 83 | . . 2 13 . 36 28 4 . . . . . Kinetic 11839 | 14 883 148 1497 27 3582 2251 2803 . 27 . 607 . Thermal 184 | . 56 . . . . . 128 . . . . . Explosive 1742 | . . . . 432 . . 691 . . . 619 . Electromagnetic 2828 | . . . . . . . 367 126 145 . 2190 . Impact . | . . . . . . . . . . . . . Slashing . | . . . . . . . . . . . . . Piercing . | . . . . . . . . . . . . . Highest Corruption 5 | . . . . . 1 1 2 2 2 5 1 1 Average Corruption 1 | . . . . . 1 1 1 2 2 2 1 1 Corruption Purged . | . . . . . . . . . . . . . Corruption Blocked . | . . . . . . . . . . . . . Effects 34 | . . . . . 3 11 3 8 6 1 1 1 Message Errors 7 | . . . . . . 3 1 . 2 1 . . Matter Fused 5 | . . . . . . 2 . 1 1 . 1 . Heat Flow Errors 5 | . . . . . 2 1 . 1 . . . 1 Energy Discharges 7 | . . . . . 1 2 . 2 2 . . . Parts Fused 1 | . . . . . . 1 . . . . . . Data Loss (minor) 5 | . . . . . . . . 4 1 . . . Data Loss (major) 1 | . . . . . . . 1 . . . . . Misfires 1 | . . . . . . 1 . . . . . . Alerts 1 | . . . . . . 1 . . . . . . Weapon Failures 1 | . . . . . . . 1 . . . . . Overload Shots . | . . . . . . . . . . . . . Overflow Damage 130 | . . . 6 52 . . 54 . . . 18 . Projectiles 46 | . . . 6 . . . 40 . . . . . Explosions 84 | . . . . 52 . . 14 . . . 18 . Melee . | . . . . . . . . . . . . . Knockbacks 17 | . . 2 2 2 2 1 6 . . . 2 . Impact 1 | . . . . . . 1 . . . . . . Kinetic 15 | . . 2 2 1 2 . 6 . . . 2 . Secondary 1 | . . . . 1 . . . . . . . . Self-Inflicted Damage 183 | . . . . 131 . . . . . . 52 . Shots 8 | . . . . 5 . . . . . . 3 . Rammed 17 | . . 1 5 . 5 5 1 . . . . . Targets Rammed 18 | . . 1 5 . 5 5 2 . . . . . Kicked . | . . . . . . . . . . . . . Crushed 1 | . . . . . . . 1 . . . . . Highest Temperature 257 | . 40 . 63 3 238 230 257 120 46 . 238 46 Average Temperature 57 | . 12 . 15 2 40 57 86 58 24 . 112 46 Received Heat Transfer 1989 | . 504 . 147 . 463 273 376 . . . 226 . Effects 8 | . . . . . . 4 1 . . . 3 . Energy Bleed 1 | . . . . . . 1 . . . . . . Interference 7 | . . . . . . 3 1 . . . 3 . Siege Activations . | . . . . . . . . . . . . . Martial Activations . | . . . . . . . . . . . . . Shielding Activations . | . . . . . . . . . . . . . Robots Disrupted . | . . . . . . . . . . . . . Combat Hostiles . | . . . . . . . . . . . . . Robots Corrupted 4 | . . . . . . . . . . . 4 . Combat Hostiles 4 | . . . . . . . . . . . 4 . Parts Fried 2 | . . . . . . . . 1 1 . . . Impact Corruptions . | . . . . . . . . . . . . . Robots Melted . | . . . . . . . . . . . . . Combat Hostiles . | . . . . . . . . . . . . . Parts Melted . | . . . . . . . . . . . . . Heat Transferred 325 | . 125 . . . . . 200 . . . . . Parts Sabotaged . | . . . . . . . . . . . . . Parts Stolen . | . . . . . . . . . . . . . Parts Stripped . | . . . . . . . . . . . . . Power Chain Reactions 2 | . . . . . . . 2 . . . . . Alert | -11 -10 -10 -9 -9 -8 -8 -7 -7 -7 -7 -7 -6 ------- Run | Yrd Mat Min Mat Min Mat Sto Fac Low Low Zio Dee Pro Maximum Alert Level 2 | . . . 1 . 2 1 2 . . . . . Low Security (%) 75 | 100 100 100 94 100 45 75 42 . . . . . Level 1 13 | . . . 5 . 13 24 39 . . . . . Level 2 11 | . . . . . 41 . 18 . . . . . Level 3 . | . . . . . . . . . . . . . Level 4 . | . . . . . . . . . . . . . Level 5 . | . . . . . . . . . . . . . High Security . | . . . . . . . . . . . . . Max Security . | . . . . . . . . . . . . . Peak Influence 577 | 5 102 47 218 191 577 311 450 . . . . . Initial 239 | . . . 7 54 . 239 135 . . . . . Average 145 | . 31 4 115 53 254 175 243 . . . . . Influence Increases 4394 | 5 459 62 702 264 1030 670 1102 30 70 . . . Destroy 0b10 Robot/C 2780 | . 280 40 420 140 700 380 740 20 60 . . . Destroy 0b10 Robot/NC 245 | 5 20 15 55 5 45 35 65 . . . . . Destroy Leader 720 | . 54 . 142 20 204 142 138 10 10 . . . Allied During Kill 30 | . . 6 24 . . . . . . . . . Successful Hack 165 | . 44 . 25 . 45 17 34 . . . . . Disable Machine 255 | . 30 . 30 75 15 60 45 . . . . . Destroy Structure 79 | . 1 1 6 24 6 6 35 . . . . . Partial Spotted 30 | . . . . . . 15 15 . . . . . Lose Combat Pursuer 90 | . 30 . . . 15 15 30 . . . . . Influence Decreases 4394 | 5 459 42 581 405 463 938 1085 346 70 . . . Entered New Map 710 | . . . 13 87 . 328 164 118 . . . . Time Decay 3162 | 5 407 42 498 318 443 580 571 228 70 . . . Lost Part 162 | . 52 . 10 . 20 30 50 . . . . . Lost Ally 60 | . . . 60 . . . . . . . . . Purge Threat 300 | . . . . . . . 300 . . . . . Squads Dispatched 16 | . 2 . 3 . 4 . 7 . . . . . Investigation 5 | . 2 . 1 . 1 . 1 . . . . . Extermination 2 | . . . . . . . 2 . . . . . Reinforcement 9 | . . . 2 . 3 . 4 . . . . . Assault . | . . . . . . . . . . . . . Garrison . | . . . . . . . . . . . . . Intercept . | . . . . . . . . . . . . . Searches Triggered . | . . . . . . . . . . . . . Construction Impeded 2 | . . . 1 . . . 1 . . . . . Haulers Reinforced . | . . . . . . . . . . . . . Active Scanning Responses . | . . . . . . . . . . . . . Cargo Convoy Interrupts . | . . . . . . . . . . . . . Stealth | -11 -10 -10 -9 -9 -8 -8 -7 -7 -7 -7 -7 -6 --------- Run | Yrd Mat Min Mat Min Mat Sto Fac Low Low Zio Dee Pro Distress Signals 11 | . 2 . 2 . 3 2 2 . . . . . Communications Jammed . | . . . . . . . . . . . . . Distress Signals . | . . . . . . . . . . . . . Times Spotted 253 | . 25 2 30 7 44 22 57 1 3 . 55 7 Peak Tracking Total 37 | . 6 1 4 4 5 5 6 1 3 . 37 3 Tactical Retreats 7 | . 2 . . . 1 1 2 . . . 1 . Traps | -11 -10 -10 -9 -9 -8 -8 -7 -7 -7 -7 -7 -6 ------- Run | Yrd Mat Min Mat Min Mat Sto Fac Low Low Zio Dee Pro Traps Triggered 6 | . 2 . . . 2 1 1 . . . . . Indirectly . | . . . . . . . . . . . . . Trap Hack Attempts . | . . . . . . . . . . . . . Triggered . | . . . . . . . . . . . . . Disarmed . | . . . . . . . . . . . . . Reprogrammed . | . . . . . . . . . . . . . Reused . | . . . . . . . . . . . . . Traps Extracted . | . . . . . . . . . . . . . Installed . | . . . . . . . . . . . . . Triggered . | . . . . . . . . . . . . . Machines | -11 -10 -10 -9 -9 -8 -8 -7 -7 -7 -7 -7 -6 ---------- Run | Yrd Mat Min Mat Min Mat Sto Fac Low Low Zio Dee Pro Machines Disabled 19 | . 2 . 2 5 1 4 3 . . . 2 . Max in Single Turn 2 | . 1 . 1 2 1 1 1 . . . 1 . Garrison Access 2 | . . . . . 1 1 . . . . . . Machines Repaired . | . . . . . . . . . . . . . Machines Dismantled . | . . . . . . . . . . . . . Machines Sabotaged . | . . . . . . . . . . . . . Overloaded Fab Kills . | . . . . . . . . . . . . . Hacking | -11 -10 -10 -9 -9 -8 -8 -7 -7 -7 -7 -7 -6 --------- Run | Yrd Mat Min Mat Min Mat Sto Fac Low Low Zio Dee Pro Machines Accessed 52 | . 10 1 11 . 12 10 7 . 1 . . . Terminals 42 | . 8 . 10 . 11 8 5 . . . . . Fabricators 2 | . . . . . . . 2 . . . . . Repair Stations . | . . . . . . . . . . . . . Recycling Units 4 | . 2 . 1 . . 1 . . . . . . Scanalyzers . | . . . . . . . . . . . . . Garrison Access 2 | . . . . . 1 1 . . . . . . Total Hacks 133 | . 27 1 38 . 29 21 16 . 1 . . . Successful 56 | . 14 1 14 . 14 7 5 . 1 . . . Failed 75 | . 13 . 23 . 14 14 11 . . . . . Catastrophic 12 | . 2 . 1 . 2 3 4 . . . . . Database Lockouts 2 | . . . 1 . 1 . . . . . . . Manual 82 | . 19 . 22 . 23 3 10 . . 5 . . Terminals 116 | . 23 . 34 . 28 17 14 . . . . . Fabricators 2 | . . . . . . . 2 . . . . . Repair Stations . | . . . . . . . . . . . . . Recycling Units 9 | . 4 . 4 . . 1 . . . . . . Scanalyzers . | . . . . . . . . . . . . . Garrison Access 4 | . . . . . 1 3 . . . . . . Terminal Hacks 32 | . 7 1 7 . 5 6 5 . 1 . . . Record 1 | . . . . . . . . . 1 . . . Robot Analysis 1 | . 1 . . . . . . . . . . . Prototype ID Bank 14 | . 5 . 3 . 3 . 3 . . . . . Open Door 3 | . . 1 . . . 2 . . . . . . Branch Access Points 1 | . . . . . 1 . . . . . . . Unreport Threat 2 | . . . . . . . 2 . . . . . Locate Traps 3 | . . . . . . 3 . . . . . . Hauler Manifests 3 | . 1 . 1 . 1 . . . . . . . Zone Layout 4 | . . . 3 . . 1 . . . . . . Fabricator Hacks . | . . . . . . . . . . . . . Repair Station Hacks . | . . . . . . . . . . . . . Recycling Unit Hacks 2 | . 1 . 1 . . . . . . . . . Retrieve Components 2 | . 1 . 1 . . . . . . . . . Scanalyzer . | . . . . . . . . . . . . . Garrison Access Hacks 2 | . . . . . 1 1 . . . . . . Seal Access 2 | . . . . . 1 1 . . . . . . Unauthorized Hacks 20 | . 6 . 6 . 8 . . . . . . . Terminals 20 | . 6 . 6 . 8 . . . . . . . Botnet 4 | . 1 . 1 . 2 . . . . . . . Skim 16 | . 5 . 5 . 6 . . . . . . . Fabricators . | . . . . . . . . . . . . . Repair Stations . | . . . . . . . . . . . . . Recycling Units . | . . . . . . . . . . . . . Scanalyzers . | . . . . . . . . . . . . . Garrison Access . | . . . . . . . . . . . . . Data Cores Recovered . | . . . . . . . . . . . . . Used . | . . . . . . . . . . . . . Hacking Detections 47 | . 9 . 11 . 11 9 7 . . . . . Full Trace Events . | . . . . . . . . . . . . . Feedback Events . | . . . . . . . . . . . . . Feedback Blocked . | . . . . . . . . . . . . . Robot Schematics Acquired . | . . . . . . . . . . . . . Robots Built . | . . . . . . . . . . . . . Authchips . | . . . . . . . . . . . . . Time . | . . . . . . . . . . . . . Total Robot Build Rating . | . . . . . . . . . . . . . Part Schematics Acquired . | . . . . . . . . . . . . . Parts Built . | . . . . . . . . . . . . . Authchips . | . . . . . . . . . . . . . Time . | . . . . . . . . . . . . . Total Part Build Rating . | . . . . . . . . . . . . . Parts Repaired . | . . . . . . . . . . . . . Time . | . . . . . . . . . . . . . Parts Recycled . | . . . . . . . . . . . . . Recycled Matter . | . . . . . . . . . . . . . Retrieved Matter . | . . . . . . . . . . . . . Retrieved Components 4 | . 1 . 3 . . . . . . . . . Parts Scanalyzed . | . . . . . . . . . . . . . Part Schematics Acquired . | . . . . . . . . . . . . . Parts Damaged . | . . . . . . . . . . . . . Bothacking | -11 -10 -10 -9 -9 -8 -8 -7 -7 -7 -7 -7 -6 ------------ Run | Yrd Mat Min Mat Min Mat Sto Fac Low Low Zio Dee Pro Used RIF Installer . | . . . . . . . . . . . . . Robots Hacked . | . . . . . . . . . . . . . Non-combat . | . . . . . . . . . . . . . Combat . | . . . . . . . . . . . . . Robot Hacks Applied . | . . . . . . . . . . . . . Relay Couplers Released . | . . . . . . . . . . . . . Fabnet Peak Effective % . | . . . . . . . . . . . . . Robots Rewired . | . . . . . . . . . . . . . Allies Hacked . | . . . . . . . . . . . . . Hacks Repelled . | . . . . . . . . . . . . . Allies | -11 -10 -10 -9 -9 -8 -8 -7 -7 -7 -7 -7 -6 -------- Run | Yrd Mat Min Mat Min Mat Sto Fac Low Low Zio Dee Pro Total Allies 8 | . . 3 . . . . . . . 5 . . Largest Group 5 | . . 3 3 . . . . . . 5 5 . Highest-Rated Group 262 | . . 40 40 . . . . . . 262 262 . Highest-Rated Ally 96 | . . 16 16 . . . . . . 96 96 . Total Orders . | . . . . . . . . . . . . . Ally Attacks 91 | . . 11 31 . . . . . . . 49 . Total Damage 1569 | . . 56 294 . . . . . . . 1219 . Kills 12 | . . 2 2 . . . . . . . 8 . Allies Corrupted . | . . . . . . . . . . . . . Allies Melted . | . . . . . . . . . . . . . Intel | -11 -10 -10 -9 -9 -8 -8 -7 -7 -7 -7 -7 -6 ------- Run | Yrd Mat Min Mat Min Mat Sto Fac Low Low Zio Dee Pro Active Infowar (turns) 13709 | 6 1798 635 1663 1083 2108 1791 1727 516 562 1797 23 . Optics 3 | . . . . . . . . . . 3 . . Terrain 4128 | . . . . . . . 1253 516 562 1797 . . Seismic 10790 | 6 1798 635 1663 1083 2108 1791 1683 . . . 23 . Robot Analysis Total 1 | . 1 . . . . . . . . . . . Derelict Logs Recovered 5 | . . 1 . 1 . . . 1 1 . . 1 Drone Launches . | . . . . . . . . . . . . . Drone Recoveries . | . . . . . . . . . . . . . Exploration | -11 -10 -10 -9 -9 -8 -8 -7 -7 -7 -7 -7 -6 ------------- Run | Yrd Mat Min Mat Min Mat Sto Fac Low Low Zio Dee Pro Turns Passed 15730 | 65 1798 635 1665 1083 2152 1791 1727 516 562 1990 1610 136 Spaces Moved 7202 | 33 612 185 573 425 924 619 801 310 340 1187 921 272 Core 332 | 2 . . . . . . . . . . 58 272 Treads 6763 | 31 612 185 466 425 924 619 801 310 340 1187 863 . Legs . | . . . . . . . . . . . . . Wheels 107 | . . . 107 . . . . . . . . . Hover . | . . . . . . . . . . . . . Flight . | . . . . . . . . . . . . . Fastest Speed 50 | 50 160 320 155 250 170 170 161 161 161 161 50 50 Average Speed 192 | 153 259 320 232 250 190 249 175 161 161 161 158 50 Slowest Speed 320 | 160 320 320 320 250 250 250 250 161 161 161 246 50 Overloaded Moves . | . . . . . . . . . . . . . Propulsion Burnouts . | . . . . . . . . . . . . . Robots Hopped 1 | . . . . . . . . . . 1 . . Potential Cave-ins . | . . . . . . . . . . . . . Cave-ins Triggered . | . . . . . . . . . . . . . Exploration Rate (%) 61 | 3 91 35 76 94 87 84 24 58 53 85 73 35 Regions Visited 12 Branch Regions 8 Pre-discovered Areas 11 | . 7 . 1 . 1 . . . 1 1 . . Known Exits Taken 5 | . . . 1 1 1 . 1 1 . . . . Unknown Exits Taken 7 | 1 1 1 . . . 1 . . 1 1 1 . Scrap Searched 8 | . . . . 1 . . . 3 1 3 . . Spaces Dug 22 | . . . 1 10 . . 11 . . . . . Terrain Destroyed 94 | . . 1 2 41 2 . 46 . . . 2 . Melee . | . . . . . . . . . . . . . Projectile 8 | . . 1 2 . 2 . 1 . . . 2 . AOE 86 | . . . . 41 . . 45 . . . . . Terrain Rammed . | . . . . . . . . . . . . . Walls Destroyed . | . . . . . . . . . . . . . Machines Disabled . | . . . . . . . . . . . . . Actions | -11 -10 -10 -9 -9 -8 -8 -7 -7 -7 -7 -7 -6 --------- Run | Yrd Mat Min Mat Min Mat Sto Fac Low Low Zio Dee Pro Total 8329 | 42 719 211 808 435 1137 763 998 316 347 1267 1014 272 Wait 455 | . 12 12 151 . 82 62 58 . . 53 25 . Move 7188 | 32 611 184 572 424 923 618 800 309 339 1184 920 272 Hop 1 | . . . . . . . . . . 1 . . Pick Up 73 | 2 14 3 10 . 11 4 16 . . 6 7 . Fast Attach 26 | 7 2 . 1 . . 1 3 . . 7 5 . Attach 27 | . 3 . 5 . 5 3 6 . . 1 4 . Detach 1 | . . . . . . 1 . . . . . . Swap 59 | . 2 2 5 4 8 7 19 2 2 3 5 . Drop 62 | . . 1 9 . 13 4 10 . . 12 13 . Fire 419 | 1 75 8 50 7 90 58 84 5 6 . 35 . Melee . | . . . . . . . . . . . . . Ram . | . . . . . . . . . . . . . Kick . | . . . . . . . . . . . . . Crush 18 | . . 1 5 . 5 5 2 . . . . . Escape Stasis . | . . . . . . . . . . . . . Rewire . | . . . . . . . . . . . . . Trap . | . . . . . . . . . . . . . Miscellaneous . | . . . . . . . . . . . . . Route ------- -11/Scrapyard -10/Materials (discovered 4 exits: *Mat x3 / *Min) -10/Mines -9/Materials (discovered 4 exits: *Mat x3 / *Min) -9/Mines (discovered 4 exits: *Mat x2 / [*Exi] / *Zio) -8/Materials (discovered 5 exits: *Fac x3 / *Sto x2) -8/Storage -7/Factory (discovered 2 exits: [*Fac] / *Low) -7/Lower Caves -7/Lower Caves -7/Zion (discovered 2 exits: [*Dee] / [*Pro]) -7/Deep Caves -6/Proximity Caves History --------- Turn | Location | Event 31 | -11/Scrapyard | Discovered new exit (range 16) 66 | -11/Scrapyard | Entered Materials 306 | -10/Materials | Build established: Mutant 340 | -10/Materials | Discovered new exit (range 13) 516 | -10/Materials | Discovered new exit (range 8) 769 | -10/Materials | Discovered new exit (range 3) 896 | -10/Materials | Core integrity fell below 50% 1066 | -10/Materials | Derelicts attacked the area 1158 | -10/Materials | Discovered new exit (range 7) 1347 | -10/Materials | Learned Storage garrison access intel 1441 | -10/Materials | Learned Storage security intel 1511 | -10/Materials | Loaded intel: 8 terminal locations 1543 | -10/Materials | Build established: Scavenger-Mutant 1552 | -10/Materials | Learned location of Mines (-10) 1628 | -10/Materials | Learned location of Storage (-8) 1864 | -10/Materials | Entered Mines 1868 | -10/Mines | Assisted by bots powering up and referring to "LRC-V3" 1989 | -10/Mines | Learned Materials emergency access door positions 2105 | -10/Mines | Met a Derelict who couldn't figure out how to use a Trap Extractor 2308 | -10/Mines | Discovered new exit (range 11) 2423 | -10/Mines | Build established: Mutant 2499 | -10/Mines | Entered Materials 2499 | -9/Materials | Accompanied by 3 allies 2499 | -9/Materials | Evolved 2 slots: Utility x1, Weapon x1 2922 | -9/Materials | Discovered new exit (range 16) 3090 | -9/Materials | Learned 2 Storage zone layouts 3141 | -9/Materials | Identified exit to Materials 3180 | -9/Materials | Identified exit to Mines 3210 | -9/Materials | Learned Storage emergency access door positions 3220 | -9/Materials | Central database locked down 3256 | -9/Materials | Build established: Gunner 3332 | -9/Materials | Destroyed 7 combat bots 3341 | -9/Materials | Learned 2 Materials zone layouts 4164 | -9/Materials | Entered Mines 4178 | -9/Mines | Met a Derelict bent on vengeance 4229 | -9/Mines | Learned Materials garrison access intel 4466 | -9/Mines | Deemed a non-threat by the Exiles lab entrance 4466 | -9/Mines | Discovered new exit (range 5) 4771 | -9/Mines | Discovered exit to Materials (range 8) 4945 | -9/Mines | A Derelict revealed a hidden shortcut to a safe place 4977 | -9/Mines | Discovered exit to Materials (range 10) 5247 | -9/Mines | Entered Materials 5247 | -8/Materials | Evolved 2 slots: Propulsion x1, Utility x1 5249 | -8/Materials | Loaded intel: 1 garrison access location 5522 | -8/Materials | Central database locked down 5957 | -8/Materials | Discovered new exit (range 7) 6110 | -8/Materials | Discovered new exit (range 16) 6423 | -8/Materials | Identified exit to Storage 6566 | -8/Materials | Discovered new exit (range 16) 6987 | -8/Materials | Discovered new exit (range 13) 7072 | -8/Materials | Learned Storage terminal intel 7111 | -8/Materials | Learned 2 Lower Caves zone layouts 7112 | -8/Materials | Learned 2 Storage zone layouts 7113 | -8/Materials | Learned location of Zion (-7) 7116 | -8/Materials | Learned 4 Factory zone layouts 7129 | -8/Materials | Learned Storage emergency access door positions 7399 | -8/Materials | Entered Storage 7403 | -8/Storage | Loaded intel: 12 terminal locations 7404 | -8/Storage | Loaded intel: 1 garrison access location 9153 | -8/Storage | Discovered new exit (range 15) 9190 | -8/Storage | Entered Factory 9190 | -7/Factory | Evolved 2 slots: Propulsion x1, Utility x1 9191 | -7/Factory | Identified exit to Lower Caves 9584 | -7/Factory | Build established: Tank 9959 | -7/Factory | Build established: Gunner 10263 | -7/Factory | Found Prototype Launcher 10389 | -7/Factory | Discovered new exit (range 11) 10869 | -7/Factory | Destroyed 7 combat bots 10917 | -7/Factory | Entered Lower Caves 11177 | -7/Lower Caves | Build established: Tank 11259 | -7/Lower Caves | Identified exit to Lower Caves 11433 | -7/Lower Caves | Entered another Lower Caves area 11507 | -7/Lower Caves | Encountered a Warlord checkpoint 11507 | -7/Lower Caves | Learned location of Extension (-4) 11526 | -7/Lower Caves | Entered a destroyed Warlord outpost 11937 | -7/Lower Caves | Discovered new exit (range 10) 11995 | -7/Lower Caves | Entered Zion 12047 | -7/Zion | System corruption cleaned by Quarantine Array 12198 | -7/Zion | Discovered new exit (range 16) 12400 | -7/Zion | Given A8's code to call for help 12715 | -7/Zion | Learned location of Data Miner (-6) 12765 | -7/Zion | Given the Hacking Drone Bay 12957 | -7/Zion | Identified Rocket Array 12970 | -7/Zion | System corruption cleaned by Quarantine Array 13218 | -7/Zion | Acquired unknown access codes intercepted by a Zionite 13240 | -7/Zion | Found CR-A16's Pointy Stick 13339 | -7/Zion | Gained Derelict followers 13404 | -7/Zion | Opened final containment barrier to the Deep Caves 13619 | -7/Zion | Found Prototype Processor 13619 | -7/Zion | Identified Exp. Armor Integrity Analyzer 13623 | -7/Zion | Found Prototype Processor 13623 | -7/Zion | Identified Exp. Terrain Scan Processor 13632 | -7/Zion | Found Prototype Processor 13632 | -7/Zion | Identified Exp. Targeting Computer 13635 | -7/Zion | Found Prototype Hackware 13635 | -7/Zion | Identified Exp. Hacking Suite 13638 | -7/Zion | Found Prototype Processor 13638 | -7/Zion | Identified Spectral Analyzer 13663 | -7/Zion | Found Exp. Terrain Scan Processor 13879 | -7/Zion | Discovered new exit (range 3) 13879 | -7/Zion | Saw the warning signs outside the Deep Caves entrance 13946 | -7/Zion | Enhanced Grunt warped into view, answering call for help 13946 | -7/Zion | Enhanced Grunt warped into view, answering call for help 13985 | -7/Zion | Entered Deep Caves 13985 | -7/Deep Caves | Accompanied by 5 allies 14079 | -7/Deep Caves | Build established: Gunner 14156 | -7/Deep Caves | Found Surveybot 24 Scanner 14158 | -7/Deep Caves | Found Surveybot 24 Chip 14260 | -7/Deep Caves | Attacked by Z-Imprinter 14272 | -7/Deep Caves | Allies destroyed Z-Imprinter 14398 | -7/Deep Caves | Z-Facility disabled 14583 | -7/Deep Caves | Discovered new exit (range 11) 14705 | -7/Deep Caves | Build established: Tank 15337 | -7/Deep Caves | Spotted AG-76690 15392 | -7/Deep Caves | Destroyed AG-76690 15547 | -7/Deep Caves | Triggered Deep Caves wall 15547 | -7/Deep Caves | Spotted AS-02209 15547 | -7/Deep Caves | Spotted AS-26137 15550 | -7/Deep Caves | Spotted AG-65851 15558 | -7/Deep Caves | Core integrity fell below 50% 15560 | -7/Deep Caves | Exposed GOLEM chamber 15566 | -7/Deep Caves | Core integrity fell below 20% 15575 | -7/Deep Caves | Destroyed 33 combat bots 15595 | -7/Deep Caves | Entered Proximity Caves 15596 | -6/Proximity Caves | Lost 9 parts (1p3n2u3w) 15643 | -6/Proximity Caves | Learned 8 Factory zone layouts 15672 | -6/Proximity Caves | Spotted B-75 Beast 15731 | -6/Proximity Caves | Destroyed by S-27 Virus with Autogun Last Messages --------------- 15560_ A GOLEM Unit tumbles out of the Wall Chamber. 15563_ Adv. EMP Blaster destroyed. 15565_ as-81460 released from Mobile Assembly Unit. 15565_ as-07882 released from Mobile Assembly Unit. 15565_ Zio. Light DM Reactor destroyed. 15565_ Penetrated by Slug. 15565_ Dropped Hcp. Storage Unit. 15566_ Dropped Prc. Assault Rifle. 15567_ GOLEM Unit springs to life. 15568_ AG-91473 GOLEM Unit beginning Prototype Leg integration. 15575_ Acquired 41 matter. LOCATION=UNKNOWN GOAL=ESCAPE 15605_ System corrupted: Heat flow error (+106). 15643_ Acquired derelict log, extracted data. Data stored: Factory zone layouts (x8). Map ----- +----------------------------------------------------+ | ?????????????????????????????????????????????????? | | ?????????????????????????????????????????????????? | | ?????????????????????????????????????????????????? | | ?????????????????????????????????????????????????? | | ?????????????????????????????????????????????????? | | ?????????????????????????????????????????????????? | | ?????????????????????????????????????????????????? | | ?????????????????????????????????????????????????? | | ?????????????????????????????????????????????????? | | ?????????????????????????????????????????????????? | | ?????????????????????????????????????????????????? | | ?????????????????????? ?????????????????????????? | | ?????????????????????# $?????????????????????????? | | ????????????????# #??# ?????????????????????????? | | ???????????????# ### ??#??????????????????????? | | ???????????????# # ## ??????????????????????? | | ???????????????# ??????????????????????? | | ???????????????# ??????????????????????? | | ????????????????? s ???????????????????????? | | ?????????????????? ???????????????????????? | | #?#####????????????s ???????????????????????? | | ### #????????????? s ?????####??????????????? | | ##????????????? % #??? ##?????????????? | | #??????????????# #?? ###???????????? | | #??????????????# ## ????????? | | #??????#####???# @ BB ????????? | | #?????## ##??# ### BB ????????? | | ##?????# #??# #?????? ####???????????? | | ##????### #??# #???????????????????????? | | #????## #??# #???????????????????????? | | ###### #?## #???????????????????????? | | # #??# #???????????????????????? | | # #???# ##???????###????????????? | | ######## ###### #??????? ##???????????? | | ???????# ## ### #??????? #???????????? | | ???????# ## ## ##??????? ###?????????? | | ???????# ## ##??????? ##????????? | | ??????# ## #?????? #????????? | | ????+ ### #?????? #?????????? | | ??# # #?# ## ## ##?????? #?????????? | | # # ##?# ###### #?????## #?????????? | | T + ###??# ###### #######" #?????????? | | """""""# #????# # #???????????? | | ######## #????# ########"## "???????????? | | #????####### #???????### #???????????? | | #??????????# ##????????# #??######???? | | ######??????## ########?# #### ##??? | | ## ##?????# #?# #??? | | ###???# #### #?####### #??? | | #???# ##?# #???????## #??? | +----------------------------------------------------+ Best States ------------- Heat Dissipation 60 Energy Generation 27 Energy Capacity 700 Matter Stores 300 Matter Capacity 300 Sight Range 24 Terrain Scan Range 16 Terrain Scan Density 10 Armor Coverage 450 Weapon Cycling 15 Evasion (%) 50 Targeting Accuracy 8 Armor Integrity Analysis 50 Recoil Reduction 4 Kinecelleration 30 Item Schematics ----------------- None Robot Schematics ------------------ None Fabricated ------------ Nothing Repaired ---------- Nothing Alien Tech Used ----------------- None Achievements -------------- None Challenges ------------ None Game ------ Seed DynamicBladeMiniperforator Manual? 0 Play Time 01:13:54 Cumulative 195.5 hours Start 2025.08.17 @ 12:30:39 End 2025.08.17 @ 13:46:50 Sessions 1 Manual Loads 0 Difficulty Rogue Special Mode None Game No. 163 Rogue 163 Adventurer 0 Explorer 0 Win Type - Total 6 Types 4/0/1/1/0/0/0/0/0/0 Lore% 80 Gallery% 71 Achievement% 66 Wizard Run 0 Options --------- Layout 1 ASCII 0 Keyboard 0 Movement Numpad Keybinds 0 Fullscreen 1 Font 24/Smallcaps Map View 50x35 Zoom Use 0% Tactical HUD 1 Map Filters NONE Filters NONE Steam 1 RUN: fbd50b9e-4663-40d3-9ad2-c154c7bf137b